Workbook

Sheet Dashboard
M3: 2022
M4: ENERO
A5: Acumulado a: | B5: =M4 -> ENERO | E5: Datos acumulados | G5: Cuota Negocio / Total ASEMPLEO | J5: =empresa_ccaa!L5 -> iEMPRESA | L5: ¿▲"sin" mi Empresa?
A6: Total | B6: Facturación, € | D6: (a) | E6: =J5 -> iEMPRESA | I6: Cuota de Facturación | J6: ∆ | L6: (b) | M6: ∆ (a-b)
B7: 2021 | C7: 2022 | D7: % i.a. | E7: =B7 -> 2021 | F7: =C7 -> 2022 | G7: % i.a. | H7: =E7 -> 2021 | I7: =F7 -> 2022 | J7: Dif.P.P. | L7: % i.a. | M7: Dif.P.P.
A8: Nacional | B8: 295124309.6 | C8: 340922972.3 | D8: =((C8/B8)-1) -> 0.1551843112 | E8: =empresa_ccaa!K12 -> 0 | F8: =empresa_ccaa!L12 -> 0 | G8: =IF(E8>0,((F8/E8)-1),"n.a.") -> n.a. | H8: =E8/B8 -> 0 | I8: =F8/C8 -> 0 | J8: =(I8-H8)*100 -> 0 | L8: =((C8-F8)/(B8-E8))-1 -> 0.1551843112 | M8: =(D8-L8)*100 -> 0
A9: ANDALUCIA | B9: 31558427.57 | C9: 32015715.52 | D9: =((C9/B9)-1) -> 0.0144902006 | E9: =empresa_ccaa!K13 -> 0 | F9: =empresa_ccaa!L13 -> 0 | G9: n.a. | H9: =E9/B9 -> 0 | I9: =F9/C9 -> 0 | J9: =(I9-H9)*100 -> 0 | L9: =((C9-F9)/(B9-E9))-1 -> 0.0144902006 | M9: 0
A10: ARAGON | B10: 14669934.52 | C10: 17842191.37 | D10: =((C10/B10)-1) -> 0.2162420592 | E10: =empresa_ccaa!K14 -> 0 | F10: =empresa_ccaa!L14 -> 0 | G10: n.a. | H10: 0 | I10: 0 | J10: 0 | L10: 0.2162420592 | M10: 0
A11: ASTURIAS | B11: 5530266.438 | C11: 6241898.319 | D11: 0.128679493 | E11: =empresa_ccaa!K15 -> 0 | F11: =empresa_ccaa!L15 -> 0 | G11: n.a. | H11: 0 | I11: 0 | J11: 0 | L11: 0.128679493 | M11: 0
A12: BALEARES | B12: 608620.7612 | C12: 890355.6269 | D12: 0.4629070903 | E12: =empresa_ccaa!K16 -> 0 | F12: =empresa_ccaa!L16 -> 0 | G12: =IF(E12>0,((F12/E12)-1),"n.a.") -> n.a. | H12: 0 | I12: 0 | J12: 0 | L12: 0.4629070903 | M12: 0
A13: CANARIAS | B13: 3084555.389 | C13: 6336468.967 | D13: 1.054256827 | E13: =empresa_ccaa!K17 -> 0 | F13: =empresa_ccaa!L17 -> 0 | G13: n.a. | H13: 0 | I13: 0 | J13: 0 | L13: 1.054256827 | M13: 0
A14: CANTABRIA | B14: 8198290.673 | C14: 8111527.548 | D14: -0.01058307497 | E14: =empresa_ccaa!K18 -> 0 | F14: =empresa_ccaa!L18 -> 0 | G14: n.a. | H14: 0 | I14: 0 | J14: 0 | L14: -0.01058307497 | M14: 0
A15: CASTILLA-LA MANCHA | B15: 20089698.63 | C15: 24919682.69 | D15: 0.2404209313 | E15: =empresa_ccaa!K19 -> 0 | F15: =empresa_ccaa!L19 -> 0 | G15: n.a. | H15: 0 | I15: 0 | J15: 0 | L15: 0.2404209313 | M15: 0
A16: CASTILLA Y LEÓN | B16: 17184809.32 | C16: 17378164 | D16: 0.01125148823 | E16: =empresa_ccaa!K20 -> 0 | F16: =empresa_ccaa!L20 -> 0 | G16: n.a. | H16: 0 | I16: 0 | J16: =(I16-H16)*100 -> 0 | L16: 0.01125148823 | M16: 0
A17: CATALUÑA | B17: 67373812.95 | C17: 75909994.83 | D17: 0.1266988093 | E17: =empresa_ccaa!K21 -> 0 | F17: =empresa_ccaa!L21 -> 0 | G17: =IF(E17>0,((F17/E17)-1),"n.a.") -> n.a. | H17: 0 | I17: 0 | J17: =(I17-H17)*100 -> 0 | L17: 0.1266988093 | M17: 0
A18: COMUNIDAD VALENCIANA | B18: 26275864.44 | C18: 32437531.21 | D18: 0.2344991078 | E18: =empresa_ccaa!K22 -> 0 | F18: =empresa_ccaa!L22 -> 0 | G18: n.a. | H18: 0 | I18: 0 | J18: =(I18-H18)*100 -> 0 | L18: 0.2344991078 | M18: 0
A19: EXTREMADURA | B19: 3640781.984 | C19: 3460957.673 | D19: -0.04939167256 | E19: =empresa_ccaa!K23 -> 0 | F19: =empresa_ccaa!L23 -> 0 | G19: n.a. | H19: 0 | I19: 0 | J19: 0 | L19: -0.04939167256 | M19: 0
A20: GALICIA | B20: 11700812.28 | C20: 12107673.62 | D20: 0.0347720592 | E20: =empresa_ccaa!K24 -> 0 | F20: =empresa_ccaa!L24 -> 0 | G20: n.a. | H20: 0 | I20: 0 | J20: 0 | L20: 0.0347720592 | M20: 0
A21: MADRID | B21: 48144075.73 | C21: 58347332.41 | D21: 0.211931718 | E21: =empresa_ccaa!K25 -> 0 | F21: =empresa_ccaa!L25 -> 0 | G21: n.a. | H21: 0 | I21: 0 | J21: 0 | L21: 0.211931718 | M21: 0
A22: MURCIA | B22: 15507840.56 | C22: 20286641.32 | D22: 0.3081538493 | E22: =empresa_ccaa!K26 -> 0 | F22: =empresa_ccaa!L26 -> 0 | G22: n.a. | H22: 0 | I22: 0 | J22: 0 | L22: 0.3081538493 | M22: 0
A23: NAVARRA | B23: 8142378.656 | C23: 9466854.987 | D23: 0.1626645465 | E23: =empresa_ccaa!K27 -> 0 | F23: =empresa_ccaa!L27 -> 0 | G23: n.a. | H23: 0 | I23: 0 | J23: 0 | L23: 0.1626645465 | M23: 0
A24: PAIS VASCO | B24: 11544629.93 | C24: 12978168.63 | D24: 0.1241736382 | E24: =empresa_ccaa!K28 -> 0 | F24: =empresa_ccaa!L28 -> 0 | G24: n.a. | H24: 0 | I24: 0 | J24: 0 | L24: 0.1241736382 | M24: 0
A25: RIOJA (LA) | B25: 1869509.768 | C25: 2191813.594 | D25: 0.1724001831 | E25: =empresa_ccaa!K29 -> 0 | F25: =empresa_ccaa!L29 -> 0 | G25: n.a. | H25: 0 | I25: 0 | J25: 0 | L25: 0.1724001831 | M25: 0
J28: =I6 -> Cuota de Facturación
M29: =I7 -> 2022
B30: % i.a. | F30: % i.a.
B31: =C7 -> 2022 | F31: =B31 -> 2022
B32: Total | F32: Empresa | J32: =J5 -> iEMPRESA
M33: Ámbito
A34: Ámbito | B34: =F34 -> Nacional | F34: =J34 -> Nacional | J34: Nacional | M34: Nacional
J38: =RZ519 -> ANDALUCIA | M38: CCAA
M39: Líder para la
B40: % i.a. | F40: % i.a. | M40: Empresa
B41: =B31 -> 2022 | F41: =B41 -> 2022
B42: Total | F42: Empresa | J42: =J32 -> iEMPRESA
A44: Ámbito | B44: =F44 -> ANDALUCIA | F44: =J44 -> ANDALUCIA | J44: =J38 -> ANDALUCIA
A48: Fuente: Cifras consolidadas del sector. Valores absolutos 2015-2022 y cifras de evolución de 2016 a la fecha. ASEMPLEO ©.
A49: Nota de Confidencialidad: Este informe comparativo contiene datos redondeados que son ficticeos y serán reemplazados por los que la Empresa introduzca en "empresa_ccaa".
RW495: Empresa - Sector | RX495: Empresa - Sector
RX496: p.p.
RX497: Puntos porcentuales
RW498: Dif. Ritmo | RX498: Importancia Relativa | SA498: Empresa
RW499: =IF(G8="n.a.","n.a.",(G8-D8)*100) -> n.a. | RX499: =empresa_ccaa!M12-empresa_ccaa!H12 ->  | RZ499: criterio_rank | SA499: peso | SB499: Comunidad | SC499: % i.a. | SD499: Total_Regional
RW500: =IF(G9="n.a.","n.a.",(G9-D9)*100) -> n.a. | RX500: =empresa_ccaa!M13-empresa_ccaa!H13 ->  | RZ500: =IF(SA500=$SA$518,1,0) -> 1 | SA500: =I9 -> 0 | SB500: =A9 -> ANDALUCIA | SC500: =G9 -> n.a. | SD500: =D9 -> 0.0144902006
RW501: =IF(G10="n.a.","n.a.",(G10-D10)*100) -> n.a. | RX501: =empresa_ccaa!M14-empresa_ccaa!H14 ->  | RZ501: =IF(SA501=$SA$518,1,0) -> 1 | SA501: =I10 -> 0 | SB501: =A10 -> ARAGON | SC501: =G10 -> n.a. | SD501: =D10 -> 0.2162420592
RW502: =IF(G11="n.a.","n.a.",(G11-D11)*100) -> n.a. | RX502: =empresa_ccaa!M15-empresa_ccaa!H15 ->  | RZ502: =IF(SA502=$SA$518,1,0) -> 1 | SA502: =I11 -> 0 | SB502: =A11 -> ASTURIAS | SC502: =G11 -> n.a. | SD502: =D11 -> 0.128679493
RW503: =IF(G12="n.a.","n.a.",(G12-D12)*100) -> n.a. | RX503: =empresa_ccaa!M16-empresa_ccaa!H16 ->  | RZ503: =IF(SA503=$SA$518,1,0) -> 1 | SA503: =I12 -> 0 | SB503: =A12 -> BALEARES | SC503: =G12 -> n.a. | SD503: =D12 -> 0.4629070903
RW504: =IF(G13="n.a.","n.a.",(G13-D13)*100) -> n.a. | RX504: =empresa_ccaa!M17-empresa_ccaa!H17 ->  | RZ504: =IF(SA504=$SA$518,1,0) -> 1 | SA504: =I13 -> 0 | SB504: =A13 -> CANARIAS | SC504: =G13 -> n.a. | SD504: =D13 -> 1.054256827
RW505: =IF(G14="n.a.","n.a.",(G14-D14)*100) -> n.a. | RX505: =empresa_ccaa!M18-empresa_ccaa!H18 ->  | RZ505: =IF(SA505=$SA$518,1,0) -> 1 | SA505: =I14 -> 0 | SB505: =A14 -> CANTABRIA | SC505: =G14 -> n.a. | SD505: =D14 -> -0.01058307497
RW506: =IF(G15="n.a.","n.a.",(G15-D15)*100) -> n.a. | RX506: =empresa_ccaa!M19-empresa_ccaa!H19 ->  | RZ506: =IF(SA506=$SA$518,1,0) -> 1 | SA506: =I15 -> 0 | SB506: =A15 -> CASTILLA-LA MANCHA | SC506: =G15 -> n.a. | SD506: =D15 -> 0.2404209313
RW507: =IF(G16="n.a.","n.a.",(G16-D16)*100) -> n.a. | RX507: =empresa_ccaa!M20-empresa_ccaa!H20 ->  | RZ507: =IF(SA507=$SA$518,1,0) -> 1 | SA507: =I16 -> 0 | SB507: =A16 -> CASTILLA Y LEÓN | SC507: =G16 -> n.a. | SD507: =D16 -> 0.01125148823
RW508: =IF(G17="n.a.","n.a.",(G17-D17)*100) -> n.a. | RX508: =empresa_ccaa!M21-empresa_ccaa!H21 ->  | RZ508: =IF(SA508=$SA$518,1,0) -> 1 | SA508: =I17 -> 0 | SB508: =A17 -> CATALUÑA | SC508: =G17 -> n.a. | SD508: =D17 -> 0.1266988093
RW509: =IF(G18="n.a.","n.a.",(G18-D18)*100) -> n.a. | RX509: =empresa_ccaa!M22-empresa_ccaa!H22 ->  | RZ509: =IF(SA509=$SA$518,1,0) -> 1 | SA509: =I18 -> 0 | SB509: =A18 -> COMUNIDAD VALENCIANA | SC509: =G18 -> n.a. | SD509: =D18 -> 0.2344991078
RW510: =IF(G19="n.a.","n.a.",(G19-D19)*100) -> n.a. | RX510: =empresa_ccaa!M23-empresa_ccaa!H23 ->  | RZ510: =IF(SA510=$SA$518,1,0) -> 1 | SA510: =I19 -> 0 | SB510: =A19 -> EXTREMADURA | SC510: =G19 -> n.a. | SD510: =D19 -> -0.04939167256
RW511: =IF(G20="n.a.","n.a.",(G20-D20)*100) -> n.a. | RX511: =empresa_ccaa!M24-empresa_ccaa!H24 ->  | RZ511: =IF(SA511=$SA$518,1,0) -> 1 | SA511: =I20 -> 0 | SB511: =A20 -> GALICIA | SC511: =G20 -> n.a. | SD511: =D20 -> 0.0347720592
RW512: =IF(G21="n.a.","n.a.",(G21-D21)*100) -> n.a. | RX512: =empresa_ccaa!M25-empresa_ccaa!H25 ->  | RZ512: =IF(SA512=$SA$518,1,0) -> 1 | SA512: =I21 -> 0 | SB512: =A21 -> MADRID | SC512: =G21 -> n.a. | SD512: =D21 -> 0.211931718
RW513: =IF(G22="n.a.","n.a.",(G22-D22)*100) -> n.a. | RX513: =empresa_ccaa!M26-empresa_ccaa!H26 ->  | RZ513: =IF(SA513=$SA$518,1,0) -> 1 | SA513: =I22 -> 0 | SB513: =A22 -> MURCIA | SC513: =G22 -> n.a. | SD513: =D22 -> 0.3081538493
RW514: =IF(G23="n.a.","n.a.",(G23-D23)*100) -> n.a. | RX514: =empresa_ccaa!M27-empresa_ccaa!H27 ->  | RZ514: =IF(SA514=$SA$518,1,0) -> 1 | SA514: =I23 -> 0 | SB514: =A23 -> NAVARRA | SC514: =G23 -> n.a. | SD514: =D23 -> 0.1626645465
RW515: =IF(G24="n.a.","n.a.",(G24-D24)*100) -> n.a. | RX515: =empresa_ccaa!M28-empresa_ccaa!H28 ->  | RZ515: =IF(SA515=$SA$518,1,0) -> 1 | SA515: =I24 -> 0 | SB515: =A24 -> PAIS VASCO | SC515: =G24 -> n.a. | SD515: =D24 -> 0.1241736382
RW516: =IF(G25="n.a.","n.a.",(G25-D25)*100) -> n.a. | RX516: =empresa_ccaa!M29-empresa_ccaa!H29 ->  | RZ516: =IF(SA516=$SA$518,1,0) -> 1 | SA516: =I25 -> 0 | SB516: =A25 -> RIOJA (LA) | SC516: =G25 -> n.a. | SD516: =D25 -> 0.1724001831
RZ517: codifico=1 | SA517: máximo
RZ518: =DMAX(RZ499:SB516,SA499,RZ499:RZ516)*1 -> 0 | SA518: =MAX(SA500:SA516) -> 0
RY519: geo data | RZ519: =VLOOKUP(1,RZ499:SD516,3,0) -> ANDALUCIA
RZ520: el dato a buscar debe estar en la primera columna.
RZ521: =VLOOKUP(1,RZ499:SD516,4,0)*1 -> 
RZ522: =VLOOKUP(1,RZ499:SD516,5,0)*1 -> 0.0144902006

Sheet Ayuda y Version (hidden)
G2: Versión de plantilla: | H2: 2.5

Sheet pBlock (hidden)
B4: Block Test
B5: Info1 | C5: Info2

Sheet pAccel0 (hidden)
A1: Gauge Configuration | O1: Gauge Configuration | Z1: Gauge Configuration | AK1: Gauge Configuration
F2: Decal | T2: Decal | AE2: Decal | AP2: Decal
A3: Title: | B3: =Dashboard!#REF! ->  | F3: 0 | O3: Title: | P3: =pAccel0!B3 ->  | T3: 0 | Z3: Title: | AA3: Empresa | AE3: 0 | AK3: Title: | AL3: CCAA | AP3: 0
A4: Real Value: | B4: =Dashboard!#REF! ->  | O4: Real Value: | P4: =Dashboard!I8 -> 0 | Z4: Real Value: | AA4: =Dashboard!I8 -> 0 | AK4: Real Value: | AL4: =Dashboard!RZ518 -> 0
A6: Color bands | O6: Color bands | Z6: Color bands | AK6: Color bands
A7: Red: | B7: 2 | O7: Red: | P7: 2 | Z7: Red: | AA7: 2 | AK7: Red: | AL7: 2
A8: Yellow: | B8: 15 | O8: Yellow: | P8: 15 | Z8: Yellow: | AA8: 15 | AK8: Yellow: | AL8: 15
A9: Green: | B9: 23 | O9: Green: | P9: 23 | Z9: Green: | AA9: 23 | AK9: Green: | AL9: 23
A11: Advanced Parameters | O11: Advanced Parameters | Z11: Advanced Parameters | AK11: Advanced Parameters
B12: Value to 100% | C12: =IF(ISERROR((B4-F3/100)*B27),0,(B4-F3/100)*B27) -> 0 | P12: Value to 100% | Q12: =IF(ISERROR((P4-T3/100)*P27),0,(P4-T3/100)*P27) -> 0 | AA12: Value to 100% | AB12: =IF(ISERROR((AA4-AE3/100)*AA27),0,(AA4-AE3/100)*AA27) -> 0 | AL12: Value to 100% | AM12: =IF(ISERROR((AL4-AP3/100)*AL27),0,(AL4-AP3/100)*AL27) -> 0
B13: Relative value | C13: =IF(C12>100%,102%,IF(C12<0%,-2%,C12))*1.506-0.253 -> -0.253 | P13: Relative value | Q13: =IF(Q12>100%,102%,IF(Q12<0%,-2%,Q12))*1.506-0.253 -> -0.253 | AA13: Relative value | AB13: =IF(AB12>100%,102%,IF(AB12<0%,-2%,AB12))*1.506-0.253 -> -0.253 | AL13: Relative value | AM13: =IF(AM12>100%,102%,IF(AM12<0%,-2%,AM12))*1.506-0.253 -> -0.253
A15: Angle | C15: =C13*PI() -> -0.7948229414 | O15: Angle | Q15: =Q13*PI() -> -0.7948229414 | Z15: Angle | AB15: =AB13*PI() -> -0.7948229414 | AK15: Angle | AM15: =AM13*PI() -> -0.7948229414
A16: x | B16: 0 | C16: =-COS(C15) -> -0.7004111508 | O16: x | P16: 0 | Q16: =-COS(Q15) -> -0.7004111508 | Z16: x | AA16: 0 | AB16: =-COS(AB15) -> -0.7004111508 | AK16: x | AL16: 0 | AM16: =-COS(AM15) -> -0.7004111508
A17: y | B17: 0 | C17: =SIN(C15) -> -0.7137396023 | O17: y | P17: 0 | Q17: =SIN(Q15) -> -0.7137396023 | Z17: y | AA17: 0 | AB17: =SIN(AB15) -> -0.7137396023 | AK17: y | AL17: 0 | AM17: =SIN(AM15) -> -0.7137396023
D19: Value | E19: Label | R19: Value | S19: Label | AC19: Value | AD19: Label | AN19: Value | AO19: Label
C20: 70 | D20: 10 | E20: =B26+F3 -> 4 | Q20: 70 | R20: 10 | S20: =P26+T3 -> 4 | AB20: 70 | AC20: 10 | AD20: =AA26+AE3 -> 4 | AM20: 70 | AN20: 10 | AO20: =AL26+AP3 -> 4
C21: =B7*$C$20/$B$25 -> 3.5 | D21: 10 | E21: =E20+$B$26 -> 8 | Q21: =P7*$C$20/$B$25 -> 3.5 | R21: 10 | S21: =S20+$B$26 -> 8 | AB21: =AA7*$AB$20/$AA$25 -> 3.5 | AC21: 10 | AD21: =AD20+$AA$26 -> 8 | AM21: =AL7*$AM$20/$AL$25 -> 3.5 | AN21: 10 | AO21: =AO20+$AL$26 -> 8
C22: =B8*$C$20/$B$25 -> 26.25 | D22: 10 | E22: 12 | Q22: =P8*$C$20/$B$25 -> 26.25 | R22: 10 | S22: 12 | AB22: =AA8*$AB$20/$AA$25 -> 26.25 | AC22: 10 | AD22: 12 | AM22: =AL8*$AM$20/$AL$25 -> 26.25 | AN22: 10 | AO22: =AO21+$AL$26 -> 12
C23: =B9*$C$20/$B$25 -> 40.25 | D23: 10 | E23: 16 | Q23: =P9*$C$20/$B$25 -> 40.25 | R23: 10 | S23: 16 | AB23: =AA9*$AB$20/$AA$25 -> 40.25 | AC23: 10 | AD23: 16 | AM23: 40.25 | AN23: 10 | AO23: 16
A24: White | C24: 23 | D24: 10 | E24: 20 | O24: White | Q24: 23 | R24: 10 | S24: 20 | Z24: White | AB24: 23 | AC24: 10 | AD24: 20 | AK24: White | AM24: 23 | AN24: 10 | AO24: 20
A25: Total | B25: =SUM(B7:B24) -> 40 | C25: =SUM(C21:C24) -> 93 | D25: 10 | E25: 24 | O25: Total | P25: =SUM(P7:P24) -> 40 | Q25: =SUM(Q21:Q24) -> 93 | R25: 10 | S25: 24 | Z25: Total | AA25: =SUM(AA7:AA24) -> 40 | AB25: =SUM(AB21:AB24) -> 93 | AC25: 10 | AD25: 24 | AK25: Total | AL25: =SUM(AL7:AL24) -> 40 | AM25: =SUM(AM21:AM24) -> 93 | AN25: 10 | AO25: 24
A26: Increment | B26: =B25/10 -> 4 | D26: 10 | E26: 28 | O26: Increment | P26: =P25/10 -> 4 | R26: 10 | S26: 28 | Z26: Increment | AA26: =AA25/10 -> 4 | AC26: 10 | AD26: 28 | AK26: Increment | AL26: =AL25/10 -> 4 | AN26: 10 | AO26: 28
A27: Conversion | B27: =100/B25 -> 2.5 | D27: 10 | E27: 32 | O27: Conversion | P27: =100/P25 -> 2.5 | R27: 10 | S27: 32 | Z27: Conversion | AA27: =100/AA25 -> 2.5 | AC27: 10 | AD27: 32 | AK27: Conversion | AL27: =100/AL25 -> 2.5 | AN27: 10 | AO27: 32
D28: 10 | E28: 36 | R28: 10 | S28: 36 | AC28: 10 | AD28: 36 | AN28: 10 | AO28: 36
D29: 10 | E29: 40 | R29: 10 | S29: 40 | AC29: 10 | AD29: 40 | AN29: 10 | AO29: 40
D30: 33 | E30: =F3 -> 0 | R30: 33 | S30: =T3 -> 0 | AC30: 33 | AD30: =AE3 -> 0 | AN30: 33 | AO30: =AP3 -> 0

Sheet pAccel1 (hidden)
A1: Gauge Configuration | Q1: Gauge Configuration | X1: Gauge Configuration | AE1: Gauge Configuration | AL1: Gauge Configuration | AS1: Gauge Configuration | AZ1: Gauge Configuration | BG1: Gauge Configuration
F2: Decal | V2: Decal | AC2: Decal | AJ2: Decal | AQ2: Decal | AX2: Decal | BE2: Decal | BL2: Decal
A3: Title: | B3: CPDs | F3: 100 | Q3: Title: | R3: Facturación | V3: 100 | X3: Title: | Y3: CPDs | AC3: 100 | AE3: Title: | AF3: Facturación | AJ3: 100 | AL3: Title: | AM3: Facturación | AQ3: 100 | AS3: Title: | AT3: Facturación | AX3: 100 | AZ3: Title: | BA3: Facturación | BE3: 100 | BG3: Title: | BH3: Facturación | BL3: 100
A4: Real Value: | B4: =Dashboard!#REF! ->  | C4: =Dashboard!#REF! ->  | Q4: Real Value: | R4: =Dashboard!#REF! ->  | X4: Real Value: | Y4: =Dashboard!#REF! ->  | AE4: Real Value: | AF4: =Dashboard!#REF! ->  | AL4: Real Value: | AM4: =Dashboard!D8 -> 0.1551843112 | AS4: Real Value: | AT4: =Dashboard!$G$8 -> n.a. | AZ4: Real Value: | BA4: =Dashboard!RZ522 -> 0.0144902006 | BG4: Real Value: | BH4: =Dashboard!RZ521 -> 
A6: Color bands
A7: Red: | B7: -50
A8: Yellow: | B8: 0
A9: Green: | B9: 50
A11: Advanced Parameters | Q11: Advanced Parameters | X11: Advanced Parameters | AE11: Advanced Parameters | AL11: Advanced Parameters | AS11: Advanced Parameters | AZ11: Advanced Parameters | BG11: Advanced Parameters
B12: Value to 100% | C12: =IF(ISERROR((B4-F3/100)*B27),0,(B4-F3/100)*B27) -> 0 | E12: =IF(ISERROR((C4-F3/100)*B27),0,(C4-F3/100)*B27) -> 0 | R12: Value to 100% | S12: =IF(ISERROR((R4-V3/100)*R27),0,(R4-V3/100)*R27) -> 0 | Y12: Value to 100% | Z12: =IF(ISERROR((Y4-AC3/100)*Y27),0,(Y4-AC3/100)*Y27) -> 0 | AF12: Value to 100% | AG12: =IF(ISERROR((AF4-AJ3/100)*AF27),0,(AF4-AJ3/100)*AF27) -> 0 | AM12: Value to 100% | AN12: =IF(ISERROR((AM4-AQ3/100)*AM27),0,(AM4-AQ3/100)*AM27) -> -1.689631378 | AT12: Value to 100% | AU12: =IF(ISERROR((AT4-AX3/100)*AT27),0,(AT4-AX3/100)*AT27) -> 0 | BA12: Value to 100% | BB12: =IF(ISERROR((BA4-BE3/100)*BA27),0,(BA4-BE3/100)*BA27) -> -1.971019599 | BH12: Value to 100% | BI12: =IF(ISERROR((BH4-BL3/100)*BH27),0,(BH4-BL3/100)*BH27) -> 0
B13: Relative value | C13: =IF(B4<-100%,-100%,IF(B4>100%,100%,2*B4/1)) ->  | D13: ojo1, todo en porcentaje, por 2, y con 1 al final en lugar de 100. | E13: =IF(C4<-100%,-100%,IF(C4>100%,100%,2*C4/1)) ->  | I13: Todos los negritas tienen dato 50, en lugar de 100 para que la escala recorra menos. | R13: Relative value | S13: =IF(R4<-100%,-100%,IF(R4>100%,100%,2*R4/1)) ->  | Y13: Relative value | Z13: =IF(Y4<-100%,-100%,IF(Y4>100%,100%,2*Y4/1)) ->  | AF13: Relative value | AG13: =IF(AF4<-100%,-100%,IF(AF4>100%,100%,2*AF4/1)) ->  | AM13: Relative value | AN13: =IF(AM4<-100%,-100%,IF(AM4>100%,100%,2*AM4/1)) -> 0.3103686224 | AT13: Relative value | AU13: =IF(AT4<-100%,-100%,IF(AT4>100%,100%,2*AT4/1)) -> 1 | BA13: Relative value | BB13: =IF(BA4<-100%,-100%,IF(BA4>100%,100%,2*BA4/1)) -> 0.0289804012 | BH13: Relative value | BI13: =IF(BH4<-100%,-100%,IF(BH4>100%,100%,2*BH4/1)) -> 
A15: Angle | C15: =C13*PI()/2 ->  | E15: =E13*PI()/2 ->  | Q15: Angle | S15: =S13*PI()/2 ->  | X15: Angle | Z15: =Z13*PI()/2 ->  | AE15: Angle | AG15: =AG13*PI()/2 ->  | AL15: Angle | AN15: =AN13*PI()/2 -> 0.487525892 | AS15: Angle | AU15: =AU13*PI()/2 -> 1.570796327 | AZ15: Angle | BB15: =BB13*PI()/2 -> 0.04552230776 | BG15: Angle | BI15: =BI13*PI()/2 -> 
A16: x | B16: 0 | C16: =SIN(C15) ->  | D16: =B16 -> 0 | E16: =SIN(E15) ->  | Q16: x | R16: 0 | S16: =SIN(S15) ->  | X16: x | Y16: 0 | Z16: =SIN(Z15) ->  | AE16: x | AF16: 0 | AG16: =SIN(AG15) ->  | AL16: x | AM16: 0 | AN16: =SIN(AN15) -> 0.4684414632 | AS16: x | AT16: 0 | AU16: =SIN(AU15) -> 1 | AZ16: x | BA16: 0 | BB16: =SIN(BB15) -> 0.04550658689 | BG16: x | BH16: 0 | BI16: =SIN(BI15) -> 
A17: y | B17: 0 | C17: =-COS(C15) ->  | D17: =B17 -> 0 | E17: =-COS(E15) ->  | Q17: y | R17: 0 | S17: =-COS(S15) ->  | X17: y | Y17: 0 | Z17: =-COS(Z15) ->  | AE17: y | AF17: 0 | AG17: =-COS(AG15) ->  | AL17: y | AM17: 0 | AN17: =-COS(AN15) -> -0.8834945362 | AS17: y | AT17: 0 | AU17: =-COS(AU15) -> -6.125742275e-17 | AZ17: y | BA17: 0 | BB17: =-COS(BB15) -> -0.9989640387 | BG17: y | BH17: 0 | BI17: =-COS(BI15) -> 
D19: Value | E19: Label
C20: 50 | D20: 0 | E20: 50
C21: =E21 -> 40 | D21: =D31/D33 -> 5 | E21: =E20+$B$26 -> 40
C22: =E22 -> 30 | D22: =D21 -> 5 | E22: =E21+$B$26 -> 30
C23: 20 | D23: =D22 -> 5 | E23: 20
A24: White | C24: 10 | D24: 5 | E24: 10 | Q24: White | X24: White | AE24: White | AL24: White | AS24: White | AZ24: White | BG24: White
A25: Total | B25: 50 | C25: 0 | D25: 5 | E25: 0 | Q25: Total | R25: 50 | X25: Total | Y25: 50 | AE25: Total | AF25: 50 | AL25: Total | AM25: 50 | AS25: Total | AT25: 50 | AZ25: Total | BA25: 50 | BG25: Total | BH25: 50
A26: Increment | B26: -10 | C26: -10 | D26: 5 | E26: -10 | Q26: Increment | R26: -10 | X26: Increment | Y26: -10 | AE26: Increment | AF26: -10 | AL26: Increment | AM26: -10 | AS26: Increment | AT26: -10 | AZ26: Increment | BA26: -10 | BG26: Increment | BH26: -10
A27: Conversion | B27: =100/B25 -> 2 | C27: -20 | D27: 5 | E27: -20 | Q27: Conversion | R27: =100/R25 -> 2 | X27: Conversion | Y27: =100/Y25 -> 2 | AE27: Conversion | AF27: =100/AF25 -> 2 | AL27: Conversion | AM27: =100/AM25 -> 2 | AS27: Conversion | AT27: =100/AT25 -> 2 | AZ27: Conversion | BA27: =100/BA25 -> 2 | BG27: Conversion | BH27: =100/BH25 -> 2
C28: -30 | D28: 5 | E28: -30
C29: -40 | D29: 5 | E29: -40
C30: -50 | D30: 5 | E30: -50
D31: 50
D33: 10
D35: =SUM(D20:D30) -> 50

Sheet empresa_ccaa
M3: =Dashboard!M3 -> 2022
M4: =Dashboard!M4 -> ENERO
K5: Empresa | L5: =L9 -> iEMPRESA
C9: Facturación, € | F9: ASEMPLEO | G9: ASEMPLEO | K9: Empresa = | L9: iEMPRESA
C10: Dato acumulado a | E10: =M4 -> ENERO | F10: =Dashboard!B7 -> 2021 | G10: =Dashboard!C7 -> 2022 | J10: Facturación | K10: =F10 -> 2021 | L10: =G10 -> 2022
H11: Estructura (%) | J11: Datos acumulados | M11: Estructura (%)
F12: 295124309.6 | G12: 340922972.3 | H12: =G12/G$12 -> 1 | I12: TOTAL | K12: =SUM(K13:K29) -> 0 | L12: =SUM(L13:L29) -> 0 | M12: =L12/L$12 -> 
F13: 31558427.57 | G13: 32015715.52 | H13: =G13/G$12 -> 0.09390894166 | I13: ANDALUCIA | M13: =L13/L$12 -> 
F14: 14669934.52 | G14: 17842191.37 | H14: =G14/G$12 -> 0.05233496366 | I14: ARAGON | M14: =L14/L$12 -> 
F15: 5530266.438 | G15: 6241898.319 | H15: =G15/G$12 -> 0.01830882289 | I15: ASTURIAS | M15: =L15/L$12 -> 
F16: 608620.7612 | G16: 890355.6269 | H16: 0.002611603498 | I16: BALEARES
F17: 3084555.389 | G17: 6336468.967 | H17: 0.01858621883 | I17: CANARIAS
F18: 8198290.673 | G18: 8111527.548 | H18: 0.02379284532 | I18: CANTABRIA
F19: 20089698.63 | G19: 24919682.69 | H19: 0.07309475955 | I19: CASTILLA-LA MANCHA
F20: 17184809.32 | G20: 17378164 | H20: 0.05097387213 | I20: CASTILLA Y LEÓN
F21: 67373812.95 | G21: 75909994.83 | H21: 0.2226602517 | I21: CATALUÑA | M21: =L21/L$12 -> 
F22: 26275864.44 | G22: 32437531.21 | H22: 0.09514621732 | I22: COMUNIDAD VALENCIANA
F23: 3640781.984 | G23: 3460957.673 | H23: 0.01015172914 | I23: EXTREMADURA
F24: 11700812.28 | G24: 12107673.62 | H24: 0.03551439652 | I24: GALICIA
F25: 48144075.73 | G25: 58347332.41 | H25: 0.1711452063 | I25: MADRID
F26: 15507840.56 | G26: 20286641.32 | H26: 0.05950505824 | I26: MURCIA
F27: 8142378.656 | G27: 9466854.987 | H27: 0.0277683106 | I27: NAVARRA
F28: 11544629.93 | G28: 12978168.63 | H28: 0.03806774458 | I28: PAIS VASCO
F29: 1869509.768 | G29: 2191813.594 | H29: 0.006429058092 | I29: RIOJA (LA)
A31: Fuente: Cifras consolidadas del sector. ASEMPLEO ©.
A32: Nota de Confidencialidad: Este informe comparativo se genera con los datos propios de la Empresa.
DY93: check
DY94: =L12/K12-1 -> 
DY95: =L13/K13-1 -> 
DY96: =L14/K14-1 -> 
DY97: =L15/K15-1 -> 
DY98: =L16/K16-1 -> 
DY99: =L17/K17-1 -> 
DY100: =L18/K18-1 -> 
DY101: =L19/K19-1 -> 
DY102: =L20/K20-1 -> 
DY103: =L21/K21-1 -> 
DY104: =L22/K22-1 -> 
DY105: =L23/K23-1 -> 
DY106: =L24/K24-1 -> 
DY107: =L25/K25-1 -> 
DY108: =L26/K26-1 -> 
DY109: =L27/K27-1 -> 
DY110: =L28/K28-1 -> 
DY111: =L29/K29-1 -> 
GQ448: D03: | GT448: D03: | GW448: D03 : | GX448: Variación Interanual (%)
GQ449: MES: | GR449: ACUMULADO A LA FECHA | GT449: =GQ449 -> MES: | GU449: =GR449 -> ACUMULADO A LA FECHA | GW449: =GT449 -> MES: | GX449: Tasa % i.a.
GR451: Facturación | GU451: Facturación | GX451: Facturación
GY452: check
GQ453: TOTAL | GR453: 340922972.3 | GT453: TOTAL | GU453: 295124309.6 | GW453: TOTAL | GX453: 0.1551843112 | GY453: =GR453/GU453-1 -> 0.1551843112
GQ454: ANDALUCIA | GR454: 32015715.52 | GT454: ANDALUCIA | GU454: 31558427.57 | GW454: ANDALUCIA | GX454: 0.0144902006 | GY454: =GR454/GU454-1 -> 0.0144902006
GQ455: ARAGON | GR455: 17842191.37 | GT455: ARAGON | GU455: 14669934.52 | GW455: ARAGON | GX455: 0.2162420592 | GY455: 0.2162420592
GQ456: ASTURIAS | GR456: 6241898.319 | GT456: ASTURIAS | GU456: 5530266.438 | GW456: ASTURIAS | GX456: 0.128679493 | GY456: 0.128679493
GQ457: BALEARES | GR457: 890355.6269 | GT457: BALEARES | GU457: 608620.7612 | GW457: BALEARES | GX457: 0.4629070903 | GY457: 0.4629070903
GQ458: CANARIAS | GR458: 6336468.967 | GT458: CANARIAS | GU458: 3084555.389 | GW458: CANARIAS | GX458: 1.054256827 | GY458: 1.054256827
GQ459: CANTABRIA | GR459: 8111527.548 | GT459: CANTABRIA | GU459: 8198290.673 | GW459: CANTABRIA | GX459: -0.01058307497 | GY459: -0.01058307497
GQ460: CASTILLA-LA MANCHA | GR460: 24919682.69 | GT460: CASTILLA-LA MANCHA | GU460: 20089698.63 | GW460: CASTILLA-LA MANCHA | GX460: 0.2404209313 | GY460: 0.2404209313
GQ461: CASTILLA Y LEÓN | GR461: 17378164 | GT461: CASTILLA Y LEÓN | GU461: 17184809.32 | GW461: CASTILLA Y LEÓN | GX461: 0.01125148823 | GY461: 0.01125148823
GQ462: CATALUÑA | GR462: 75909994.83 | GT462: CATALUÑA | GU462: 67373812.95 | GW462: CATALUÑA | GX462: 0.1266988093 | GY462: 0.1266988093
GQ463: COMUNIDAD VALENCIANA | GR463: 32437531.21 | GT463: COMUNIDAD VALENCIANA | GU463: 26275864.44 | GW463: COMUNIDAD VALENCIANA | GX463: 0.2344991078 | GY463: 0.2344991078
GQ464: EXTREMADURA | GR464: 3460957.673 | GT464: EXTREMADURA | GU464: 3640781.984 | GW464: EXTREMADURA | GX464: -0.04939167256 | GY464: -0.04939167256
GQ465: GALICIA | GR465: 12107673.62 | GT465: GALICIA | GU465: 11700812.28 | GW465: GALICIA | GX465: 0.0347720592 | GY465: 0.0347720592
GQ466: MADRID | GR466: 58347332.41 | GT466: MADRID | GU466: 48144075.73 | GW466: MADRID | GX466: 0.211931718 | GY466: 0.211931718
GQ467: MURCIA | GR467: 20286641.32 | GT467: MURCIA | GU467: 15507840.56 | GW467: MURCIA | GX467: 0.3081538493 | GY467: 0.3081538493
GQ468: NAVARRA | GR468: 9466854.987 | GT468: NAVARRA | GU468: 8142378.656 | GW468: NAVARRA | GX468: 0.1626645465 | GY468: 0.1626645465
GQ469: PAIS VASCO | GR469: 12978168.63 | GT469: PAIS VASCO | GU469: 11544629.93 | GW469: PAIS VASCO | GX469: 0.1241736382 | GY469: 0.1241736382
GQ470: RIOJA (LA) | GR470: 2191813.594 | GT470: RIOJA (LA) | GU470: 1869509.768 | GW470: RIOJA (LA) | GX470: 0.1724001831 | GY470: =GR470/GU470-1 -> 0.1724001831
GQ471: Ceuta y Melilla | GT471: Ceuta y Melilla | GW471: Ceuta y Melilla
